fUSD/lending_fUSD_20251201
["ID","MTS","AMOUNT","RATE_DAILY","PERIOD"]
[395330050,1764632535909,-500.0,0.00042105,30]
[395330051,1764632535935,-168.3888056,0.00042105,120]
[395330052,1764632535960,-500.0,0.00042105,120]
[395330053,1764632535988,-8000.0,0.00042105,30]
[395330054,1764632536018,-8000.0,0.00042105,120]
[395330055,1764632536044,-151.0,0.00042105,30]
[395330056,1764632536071,-151.0,0.00042105,120]
[395330057,1764632536096,-151.0,0.00042105,30]
[395330058,1764632536120,-207.4,0.00042105,30]
[395330059,1764632536144,-151.0,0.00042105,120]
[395330060,1764632536169,-1097.0,0.00042106,30]
[395330061,1764632536193,-1097.0,0.00042106,30]
[395330062,1764632536219,-1097.0,0.00042106,30]
[395330063,1764632536244,-2052.8889033,0.00042121,120]
[395330064,1764632536272,-153.47,0.00042172,120]
[395330065,1764632536299,-162.24,0.00042172,120]
[395330066,1764632536324,-1000.0,0.00042191,30]
[395330067,1764632536349,-1000.0,0.00042191,120]
[395330068,1764632536375,-1000.0,0.00042191,30]
[395330069,1764632536399,-1000.0,0.00042191,30]
[395330070,1764632536426,-1000.0,0.00042191,120]
[395330071,1764632536450,-600.0,0.00042191,30]
[395330072,1764632536475,-1000.0,0.00042191,120]
[395330073,1764632536498,-250.0,0.00042191,30]
[395330074,1764632536524,-2500.0,0.00042191,30]
[395330075,1764632536552,-520.0,0.00042191,30]
[395330076,1764632536578,-6888.0,0.00042191,30]
[395330077,1764632536605,-500.0,0.00042191,30]
[395330078,1764632536632,-600.0,0.00042191,120]
[395330079,1764632536658,-250.0,0.00042191,120]
[395330080,1764632536684,-2500.0,0.00042191,120]
[395330081,1764632536709,-7142.856,0.00042191,120]
[395330082,1764632536734,-518.5,0.00042191,120]
[395330083,1764632536758,-539.24,0.00042191,120]
[395330084,1764632536783,-220.0,0.00042191,30]
[395330085,1764632536806,-220.0,0.00042191,120]
[395330086,1764632536830,-414.0,0.00042191,30]
[395330087,1764632536854,-500.0,0.00042191,30]
[395330088,1764632536879,-500.0,0.00042191,120]
[395330089,1764632536903,-151.0,0.00042191,30]
[395330090,1764632536926,-1000.0,0.00042191,30]
[395330091,1764632536951,-429.318,0.00042191,120]
[395330092,1764632536975,-151.0,0.00042191,120]
[395330093,1764632536998,-160.0,0.00042191,30]
[395330094,1764632537022,-151.0,0.00042191,30]
[395330095,1764632537047,-1000.0,0.00042191,120]
[395330096,1764632537071,-1000.0,0.00042191,30]
[395330097,1764632537095,-160.0,0.00042191,120]
[395330098,1764632537120,-151.0,0.00042191,120]
[395330099,1764632537144,-151.0,0.00042191,30]
[395330100,1764632537168,-1000.0,0.00042191,120]
[395330101,1764632537192,-156.587,0.00042191,120]
[395330102,1764632537218,-500.0,0.00042191,30]
[395330103,1764632537243,-500.0,0.00042191,120]
[395330104,1764632537267,-3000.0,0.00042191,30]
[395330105,1764632537292,-1500.0,0.00042191,30]
[395330106,1764632537317,-3000.0,0.00042191,120]
[395330107,1764632537621,-250.0,0.00042191,30]
[395330108,1764632537651,-500.0,0.00042191,30]
[395330109,1764632537676,-1500.0,0.00042191,120]
[395330110,1764632537701,-250.0,0.00042191,120]
[395330111,1764632537727,-500.0,0.00042191,120]
[395330112,1764632537752,-10000.0,0.00042191,30]
[395330113,1764632537776,-151.0,0.00042191,30]
[395330114,1764632537801,-10000.0,0.00042191,120]
[395330115,1764632537827,-151.0,0.00042191,120]
[395330116,1764632537851,-151.0,0.00042191,30]
[395330117,1764632537875,-151.0,0.00042191,120]
[395330118,1764632537901,-151.0,0.00042191,30]
[395330119,1764632537925,-500.0,0.00042191,30]
[395330120,1764632537950,-156.587,0.00042191,120]
[395330121,1764632537975,-500.0,0.00042191,120]
[395330122,1764632538000,-8000.0,0.00042191,30]
[395330123,1764632538025,-8000.0,0.00042191,120]
[395330124,1764632538050,-151.0,0.00042191,30]
[395330125,1764632538075,-151.0,0.00042191,120]
[395330126,1764632538100,-151.0,0.00042191,30]
[395330127,1764632538128,-151.0,0.00042191,120]
[395330128,1764632538154,-200.0,0.00042191,30]
[395330129,1764632538178,-300.0,0.00042191,30]
[395330130,1764632538204,-600.0,0.00042192,120]
[395330131,1764632538229,-150.05,0.00042198,30]
[395330132,1764632538253,-150.05,0.00042198,30]
[395330133,1764632538279,-2030.8211259,0.0004227,30]
[395330134,1764632538304,-153.47,0.00042272,120]
[395330135,1764632538331,-162.44,0.00042272,120]
[395330136,1764632538356,-4290.0,0.000423,120]
[395330137,1764632538383,-153.47,0.00042372,120]
[395330138,1764632538408,-1200.0,0.00042372,60]
[395330139,1764632538433,-900.0,0.00042372,60]
[395330140,1764632538458,-2526.36850114,0.0004244,120]
[395330141,1764632538484,-153.47,0.00042472,120]
[395330142,1764632538509,-200.0,0.00042499,120]
[395330143,1764632538534,-545.0,0.000425,120]
[395330144,1764632538562,-5190.0,0.000425,120]
[395330145,1764632538587,-150.0,0.00042501,120]
[395330146,1764632538615,-150.0,0.00042564,120]
[395330147,1764632538644,-153.47,0.00042572,120]
[395330148,1764632538670,-213.43630282,0.00042621,120]
[395330149,1764632538696,-153.47,0.00042672,120]
[395330150,1764632538723,-799.11,0.00042739,120]
[395330151,1764632538748,-600.0,0.0004274,120]
[395330152,1764632538775,-153.47,0.00042772,120]
[395330153,1764632538800,-574.2064926,0.000428,120]
[395330154,1764632538824,-14582.71545089,0.000428,30]
[395330155,1764632538850,-446.83682097,0.000428,120]
[395330156,1764632538876,-150.0,0.00042859,120]
[395330157,1764632538904,-153.47,0.00042872,120]
[395330158,1764632538930,-1795.29889909,0.000429,120]
[395330159,1764632538955,-947.87,0.00042904,61]
[395330160,1764632538980,-1200.0,0.0004292,60]
[395330161,1764632539004,-900.0,0.0004292,60]
[395330162,1764632539029,-203.0,0.0004295,30]
[395330163,1764632539055,-153.47,0.00042972,120]
[395330164,1764632539080,-800.0,0.00042999,30]
[395330165,1764632539105,-800.0,0.00042999,30]
[395330166,1764632539131,-800.0,0.00042999,30]
[395330167,1764632539158,-800.0,0.00042999,30]
[395330168,1764632539184,-2667.70893225,0.00043,120]
[395330169,1764632539209,-348.04811087,0.00043,120]
[395330170,1764632539234,-195.9177609,0.00043,120]
[395330171,1764632539259,-4332.63323647,0.00043,120]
[395330172,1764632539283,-1000.0,0.00043,120]
[395330173,1764632539308,-1000.0,0.00043,120]
[395330174,1764632539332,-500.0,0.00043,120]
[395330175,1764632539362,-1514.65326147,0.00043,30]
[395330176,1764632539386,-319.68553336,0.00043,120]
[395330177,1764632539413,-370.83594751,0.00043,120]
[395330178,1764632539438,-204.24,0.00043014,120]
[395330179,1764632539463,-153.47,0.00043072,120]
[395330180,1764632539488,-5093.57255208,0.000431,120]
[395330181,1764632539512,-176.0,0.000431,120]
[395330182,1764632539537,-153.47,0.00043172,120]
[395330183,1764632539566,-150.0,0.00043172,120]
[395330184,1764632539591,-500.0,0.00043194,60]
[395330185,1764632539616,-5532.8592,0.0004322,30]
[395330186,1764632539643,-153.47,0.00043272,120]
[395330187,1764632539668,-600.0,0.00043288,120]
[395330188,1764632539694,-153.47,0.00043372,120]
[395330189,1764632539720,-900.0,0.00043468,60]
[395330190,1764632539745,-153.47,0.00043472,120]
[395330191,1764632539770,-200.0,0.00043499,120]
[395330192,1764632539796,-150.0,0.00043538,120]
[395330193,1764632539821,-799.11,0.00043561,120]
[395330194,1764632539848,-153.47,0.00043572,120]
[395330195,1764632539873,-150.0,0.00043628,120]
[395330196,1764632539899,-153.47,0.00043672,120]
[395330197,1764632539922,-1710.73905751,0.000437,120]
[395330198,1764632539947,-4290.0,0.000437,120]
[395330199,1764632539972,-1421.805,0.00043726,62]
[395330200,1764632539999,-153.47,0.00043772,120]
[395330201,1764632540027,-3245.42681229,0.00043777,60]
[395330202,1764632540052,-500.59244827,0.000438,30]
[395330203,1764632540351,-1119.61496418,0.000438,30]
[395330204,1764632540376,-873.57844417,0.000438,120]
[395330205,1764632540400,-5505.39,0.000438,120]
[395330206,1764632540425,-5000.0,0.000438,120]
[395330207,1764632540448,-500.0,0.00043835,120]
[395330208,1764632540475,-153.47,0.00043872,120]
[395330209,1764632540501,-153.47,0.00043972,120]
[395330210,1764632540526,-2099.4639172,0.00043999,120]
[395330211,1764632540560,-800.0,0.00043999,30]
[395330212,1764632540588,-10000.0,0.00044,60]
[395330213,1764632540619,-1872.89862059,0.00044,120]
[395330214,1764632540647,-249.41089616,0.00044,120]
[395330215,1764632540675,-290.39047724,0.00044,120]
[395330216,1764632540702,-400.0,0.00044,120]
[395330217,1764632540729,-2149.0,0.00044,120]
[395330218,1764632540756,-3100.0,0.00044,120]
[395330219,1764632540783,-152.0,0.00044,120]
[395330220,1764632540810,-1000.0,0.00044,120]
[395330221,1764632540838,-3509.99655336,0.00044,120]
[395330222,1764632540866,-177.0,0.00044,120]
[395330223,1764632540893,-567.0,0.00044,31]
[395330224,1764632540919,-1200.0,0.00044016,60]
[395330225,1764632540946,-150.0,0.0004407,120]
[395330226,1764632540979,-153.47,0.00044072,120]
[395330227,1764632541006,-150.0,0.00044084,120]
[395330228,1764632541034,-153.47,0.00044172,120]
[395330229,1764632541060,-213.43630282,0.00044186,120]
[395330230,1764632541088,-1158201.33009495,0.00044193,120]
[395330231,1764632544595,-1091.13265986,0.0004066,50]
[395330232,1764632544629,-1082.10373331,0.0004066,50]
[395330233,1764632544657,-1137.96061958,0.0004066,50]
[395330234,1764632544685,-1028.74980031,0.0004066,50]
[395330235,1764632544711,-1115.21780743,0.0004066,50]
[395330236,1764632544736,-896.13166743,0.0004066,50]
[395330237,1764632544765,-151.0,0.0004149,120]
[395330238,1764632544791,-151.0,0.0004149,120]
[395330239,1764632544816,-161.908077,0.0004149,120]
[395330240,1764632544843,-300.020741,0.00041912,108]
[395330241,1764632544868,-151.0,0.00041916,120]
[395330242,1764632544892,-151.0,0.00041916,120]
[395330243,1764632544917,-251.386108,0.00041916,120]
[395330291,1764632549099,-2841798.66990505,0.00044193,120]
[395330293,1764632549127,-2150532.71888103,0.00044193,120]
[395330488,1764632558991,-281.042284,0.0004149,120]
[395330490,1764632559056,-705.97,0.00041916,30]
[395330492,1764632559120,-151.0,0.00041916,120]
[395330493,1764632559181,-151.0,0.00041916,120]
[395330495,1764632559234,-151.0,0.00041916,120]
[395330498,1764632559295,-289.808068,0.00041916,120]
[395330500,1764632559357,-151.0,0.00041916,120]
[395330502,1764632559421,-151.0,0.00041916,120]
[395330503,1764632559477,-151.0,0.00041916,120]
[395330506,1764632559534,-151.0,0.00041916,120]
[395330508,1764632559591,-151.0,0.00041916,120]
[395330510,1764632559650,-151.0,0.00041916,120]
[395330511,1764632559708,-151.0,0.00041916,120]
[395330513,1764632559767,-151.0,0.00041916,120]
[395330516,1764632559824,-151.0,0.00041916,120]
[395330518,1764632559885,-215.605373,0.00041916,120]
[395330519,1764632559942,-580.29108399,0.00041916,31]
[395330597,1764632563659,-686.58,0.00041916,30]
[395330599,1764632563714,-300.020742,0.00043998,119]
[395330601,1764632563772,-1849467.28111897,0.00044193,120]
[395330604,1764632563844,-3145661.40133004,0.00044193,120]
[395330789,1764632572852,-244.654447,0.00041916,120]
[395330864,1764632576734,-854338.59866996,0.00044193,120]
[395330866,1764632576787,-2900.0,0.0004421,60]
[395330868,1764632576833,-1097.0,0.00044211,30]
[395330870,1764632576879,-1097.0,0.00044211,30]
[395330872,1764632576925,-1097.0,0.00044211,30]
[395330874,1764632576970,-158.68958405,0.0004425,120]
[395330876,1764632577018,-153.47,0.00044272,120]
[395330878,1764632577070,-500.0,0.0004429,60]
[395330880,1764632577116,-150.0,0.00044301,120]
[395330882,1764632577164,-153.47,0.00044372,120]
[395330884,1764632577212,-153.47,0.00044472,120]
[395330886,1764632577260,-200.0,0.00044499,120]
[395330888,1764632577307,-709.14542376,0.000445,120]
[395330890,1764632577358,-152.0,0.000445,120]
[395330892,1764632577405,-177.0,0.000445,120]
[395330894,1764632577452,-567.0,0.000445,33]
[395330896,1764632577503,-153.47,0.00044572,120]
[395330899,1764632577556,-214.28835431,0.00044578,120]
[395330900,1764632577612,-216.23573793,0.00044578,120]
[395330903,1764632577666,-153.47,0.00044672,120]
[395330905,1764632577723,-153.47,0.00044772,120]
[395330907,1764632577778,-1000.0,0.000448,120]
[395330909,1764632577835,-153.47,0.00044872,120]
[395330911,1764632577884,-1851.28679194,0.0004489,120]
[395330913,1764632577935,-203.0,0.0004496,30]
[395330915,1764632577983,-153.47,0.00044972,120]
[395330917,1764632578032,-50000.0,0.00045,45]
[395330919,1764632578082,-600.0,0.00045,120]
[395330921,1764632578131,-1619.0,0.00045,120]
[395330923,1764632578179,-490.40968724,0.00045,120]
[395330925,1764632578228,-5747.97630052,0.00045,120]
[395330927,1764632578280,-157.21735669,0.00045,120]
[395330929,1764632578331,-312.85320144,0.00045,120]
[395330931,1764632578384,-1884.80108518,0.00045,120]
[395330933,1764632578436,-880.0,0.00045,120]
[395330935,1764632578484,-167.87088985,0.00045,120]
[395330937,1764632578536,-32061.65,0.00045,120]
[395330939,1764632578586,-2198.28,0.00045,120]
[395330941,1764632578638,-150.0,0.00045,60]
[395330942,1764632578689,-663.63823761,0.00045,120]
[395330944,1764632578740,-157.8,0.00045,85]
[395330947,1764632578796,-8170.28878405,0.00045,120]
[395330948,1764632578847,-4290.0,0.00045,120]
[395330951,1764632578899,-240.67028287,0.00045,60]
[395330952,1764632578951,-1368.0,0.00045,120]
[395330954,1764632578998,-250.85171602,0.00045,120]
[395330956,1764632579053,-18000.0,0.00045,120]
[395330958,1764632579110,-625.5542455,0.00045,120]
[395330960,1764632579168,-521.68597884,0.00045,120]
[395330963,1764632579220,-400.02,0.00045,120]
[395330965,1764632579267,-17993.0,0.00045,120]
[395330967,1764632579314,-500.0,0.00045,120]
[395330969,1764632579362,-20000.0,0.00045,60]
[395330971,1764632579410,-9995.0,0.00045,45]
[395330973,1764632579458,-100796.0,0.00045,120]
[395330975,1764632579506,-177.0,0.00045,120]
[395330977,1764632579561,-669.162308,0.00045,36]
[395330979,1764632579609,-15975.38804277,0.00045,120]
[395330981,1764632579657,-150.0,0.00045,120]
[395330983,1764632579704,-150.0,0.00045,120]
[395330985,1764632579752,-300.0,0.00045,120]
[395330987,1764632579798,-420.0,0.00045,120]
[395330989,1764632579845,-150.0,0.00045,120]
[395330991,1764632579891,-153.47,0.00045072,120]
[395330993,1764632579937,-152.0,0.000451,120]
[395330995,1764632579982,-1200.0,0.00045112,60]
[395330997,1764632580030,-153.99919845,0.00045172,120]
[395330999,1764632580079,-500.0,0.00045205,120]
[395331000,1764632580130,-500.0,0.00045386,60]
[395331002,1764632580183,-200.0,0.00045499,120]
[395331004,1764632580233,-1006.8965774,0.000455,120]
[395331006,1764632580284,-177.0,0.000455,120]
[395331008,1764632580336,-1342.9,0.00045534,120]
[395331010,1764632580388,-152.0,0.000456,120]
[395331012,1764632580439,-1095.96736608,0.000457,120]
[395331014,1764632580490,-213.43630282,0.00045752,120]
[395331016,1764632580540,-166.10645102,0.0004589,120]
[395331018,1764632580595,-177.0,0.000459,120]
[395331020,1764632580653,-2000.0,0.000459,120]
[395331022,1764632580701,-862.36966305,0.00046,120]
[395331024,1764632580751,-1000.0,0.00046,30]
[395331026,1764632580799,-204.63045726,0.00046,30]
[395331028,1764632580846,-2199.27364049,0.00046,120]
[395331030,1764632580892,-1179.53234068,0.00046,30]
[395331032,1764632580940,-272.63966054,0.00046,120]
[395331034,1764632580988,-826.86711542,0.00046,90]
[395331036,1764632581034,-400.0,0.00046,120]
[395331038,1764632581080,-300.0,0.00046,60]
[395331040,1764632581126,-3235.28995978,0.00046,30]
[395331042,1764632581176,-158.27635199,0.00046,120]
[395331044,1764632581223,-150.0,0.00046,120]
[395331046,1764632581271,-4619.18799279,0.00046,120]
[395331047,1764632581319,-2027.72707949,0.00046,120]
[395331048,1764632581366,-231.86876626,0.00046,120]
[395331049,1764632581414,-152.0,0.000462,120]
[395331051,1764632581461,-1200.0,0.00046208,60]
[395331053,1764632581510,-4290.0,0.000463,120]
[395331055,1764632581561,-452.94878918,0.000464,120]
[395331057,1764632581610,-177.0,0.000464,120]
[395331059,1764632581658,-500.0,0.00046482,60]
[395331061,1764632581703,-200.0,0.00046499,120]
[395331063,1764632581751,-153.68,0.000465,30]
[395331065,1764632581803,-500.0,0.00046575,120]
[395331067,1764632581851,-152.0,0.000467,120]
[395331069,1764632581895,-518.369593,0.0004678,120]
[395331071,1764632581942,-5000.0,0.00046789,31]
[395331073,1764632581987,-1366.80480381,0.000468,120]
[395331075,1764632582033,-538.25910421,0.000468,120]
[395331077,1764632582080,-850.0,0.000468,120]
[395331079,1764632582128,-1100.61,0.000469,120]
[395331081,1764632582177,-1756.87,0.000469,120]
[395331083,1764632582224,-1336.87,0.000469,120]
[395331085,1764632582274,-3815.24624798,0.000469,120]
[395331087,1764632582326,-1954.44,0.000469,120]
[395331089,1764632582376,-50000.0,0.000469,120]
[395331092,1764632582431,-177.0,0.000469,120]
[395331094,1764632582485,-203.0,0.0004698,30]
[395331096,1764632582532,-1927.30215283,0.00047,30]
[395331098,1764632582587,-2867.57867442,0.00047,120]
[395331100,1764632582637,-1928.41528315,0.00047,120]
[395331102,1764632582688,-709.55424048,0.00047,120]
[395331104,1764632582738,-1000.0,0.00047,120]
[395331106,1764632582789,-604.74205521,0.00047,120]
[395331108,1764632582838,-4438.42656815,0.00047,120]
[395331110,1764632582887,-150.0,0.00047,120]
[395331112,1764632582936,-33155.80841377,0.00047,30]
[395331114,1764632582984,-152.0,0.000472,120]
[395331116,1764632583036,-178.47731556,0.00047203,120]
[395331118,1764632583083,-1200.0,0.00047304,60]
[395331120,1764632583133,-214.28835431,0.00047318,120]
[395331122,1764632583186,-213.43630282,0.00047318,120]
[395331124,1764632583244,-216.23573793,0.00047318,120]
[395331126,1764632583319,-214.07197836,0.00047318,120]
[395331128,1764632583393,-6450.0,0.000474,120]
[395331130,1764632583457,-177.0,0.000474,120]
[395331133,1764632583523,-200.0,0.00047499,120]
[395331135,1764632583589,-5001.23441788,0.000475,120]
[395331137,1764632583654,-500.0,0.00047578,60]
[395331139,1764632583715,-4290.0,0.000477,120]
[395331141,1764632583774,-5977.25662648,0.00047777,120]
[395331142,1764632583836,-152.0,0.000478,120]
[395331145,1764632583900,-5000.0,0.000478,120]
[395331147,1764632583959,-499.999999,0.0004788,100]
[395331149,1764632584012,-2006.45971226,0.0004789,60]
[395331151,1764632584067,-2500.0,0.000479,120]
[395331153,1764632584122,-177.0,0.000479,120]
[395331155,1764632584175,-500.0,0.00047945,120]
[395331157,1764632584227,-6756.7180767,0.00048,120]
[395331159,1764632584280,-1554.25969872,0.00048,120]
[395331161,1764632584332,-398.09296882,0.00048,120]
[395331163,1764632584385,-1754.39727487,0.00048,120]
[395331165,1764632584436,-491.35499421,0.00048,120]
[395331167,1764632584488,-400.0,0.00048,120]
[395331169,1764632584539,-6060.6244565,0.00048,31]
[395331171,1764632584594,-49200.0,0.00048,33]
[395331173,1764632584648,-166.635376,0.00048,120]
[395331175,1764632584700,-261.9750674,0.00048,120]
[395331177,1764632584752,-150.0,0.00048,120]
[395331179,1764632584805,-2027.72707949,0.00048,120]
[395331182,1764632584923,-18659.0733738,0.00048,120]
[395331184,1764632584973,-15259.17233768,0.00048,120]
[395331186,1764632585022,-150.0,0.00048,120]
[395331188,1764632585076,-150.0,0.00048,120]
[395331190,1764632585129,-500.0,0.00048,120]
[395331192,1764632585180,-700.0,0.00048,120]
[395331194,1764632585234,-150.0,0.00048,120]
[395331205,1764632585722,-3470.36204123,0.0004825,120]
[395331207,1764632585775,-930.0,0.000483,120]
[395331209,1764632585826,-980.0,0.000483,120]
[395331211,1764632585877,-152.0,0.000483,120]
[395331213,1764632585928,-177.0,0.000484,120]
[395331215,1764632585978,-1200.0,0.000484,60]
[395331217,1764632586026,-200.0,0.00048499,120]
[395331219,1764632586077,-500.0,0.00048674,60]
[395331221,1764632586127,-426.61279207,0.000487,120]
[395331223,1764632586178,-5086.09867093,0.000487,120]
[395331225,1764632586228,-980.0,0.000488,120]
[395331226,1764632586277,-930.0,0.000488,120]
[395331227,1764632586329,-759.66,0.000488,120]
[395331228,1764632586382,-1172.24473713,0.000488,120]
[395331230,1764632586432,-53905.2943,0.000488,60]
[395331232,1764632586482,-1412.32897179,0.000488,120]
[395331234,1764632586531,-1206.138222,0.000488,120]
[395331236,1764632586585,-3284.94904513,0.00048875,60]
[395331238,1764632586640,-2000.0,0.000489,120]
[395331240,1764632586693,-599.0473159,0.000489,120]
[395331243,1764632586752,-152.0,0.000489,120]
[395331245,1764632586813,-5000.0,0.000489,120]
[395331247,1764632586873,-616.88,0.000489,120]
[395331249,1764632586931,-177.0,0.000489,120]
[395331251,1764632586983,-203.0,0.0004899,30]
[395331253,1764632587038,-938.02313344,0.00049,120]
[395331255,1764632587089,-789.56064528,0.00049,30]
[395331257,1764632587141,-197.17163681,0.00049,30]
[395331259,1764632587196,-324.91297651,0.00049,120]
[395331260,1764632587248,-5239.77577801,0.00049,120]
[395331263,1764632587303,-665.09462361,0.00049,120]
[395331265,1764632587362,-2443.84625734,0.00049,120]
[395331267,1764632587418,-1514.24880622,0.00049,120]
[395331269,1764632587472,-800.0,0.00049,120]
[395331271,1764632587523,-1000.0,0.00049,45]
[395331273,1764632587577,-1020.0,0.00049,120]
[395331275,1764632587633,-1484.17808534,0.00049,120]
[395331277,1764632587683,-5000.0,0.00049,120]
[395331279,1764632587738,-4290.0,0.00049,120]
[395331281,1764632587795,-3640.9,0.00049,120]
[395331282,1764632587848,-150.0,0.00049,120]
[395331285,1764632587901,-41000.01,0.00049,120]
[395331286,1764632587955,-187.2036148,0.00049,120]
[395331289,1764632588006,-4602.35,0.00049,30]
[395331290,1764632588060,-500.0,0.00049015,30]
[395331293,1764632588129,-500.0,0.00049015,30]
[395331295,1764632588198,-629.44082343,0.00049015,30]
[395331296,1764632588258,-500.0,0.00049015,30]
[395331298,1764632588314,-500.0,0.00049015,30]
[395331300,1764632588375,-500.0,0.00049015,30]
[395331302,1764632588434,-500.0,0.00049015,30]
[395331304,1764632588490,-500.0,0.00049015,30]
[395331306,1764632588548,-500.0,0.00049015,30]
[395331308,1764632588614,-500.0,0.00049015,30]
[395331310,1764632588673,-500.0,0.00049015,30]
[395331312,1764632588735,-500.0,0.00049015,30]
[395331314,1764632588796,-500.0,0.00049015,30]
[395331316,1764632588857,-442.51200632,0.00049015,30]
[395331319,1764632588918,-1000.0,0.00049271,120]
[395331320,1764632588978,-1000.0,0.00049276,120]
[395331322,1764632589035,-1000.0,0.00049281,120]
[395331324,1764632589093,-1000.0,0.00049285,120]
[395331327,1764632589153,-1000.0,0.0004929,120]
[395331328,1764632589213,-1000.0,0.00049295,120]
[395331331,1764632589267,-177.0,0.000493,120]
[395331333,1764632589317,-1000.0,0.000493,120]
[395331335,1764632589366,-1000.0,0.00049305,120]
[395331337,1764632589417,-1000.0,0.0004931,120]
[395331338,1764632589472,-500.0,0.00049315,120]
[395331341,1764632589528,-500.0,0.00049315,120]
[395331343,1764632589587,-575.13998577,0.00049315,120]
[395331345,1764632589646,-200.0,0.00049315,30]
[395331346,1764632589699,-207.4,0.00049315,30]
[395331349,1764632589756,-215.0738,0.00049315,30]
[395331351,1764632589816,-223.0315306,0.00049315,30]
[395331353,1764632589871,-231.28369723,0.00049315,30]
[395331354,1764632589928,-500.0,0.00049315,30]
[395331356,1764632589981,-239.84119403,0.00049315,30]
[395331358,1764632590044,-500.0,0.00049315,30]
[395331361,1764632590096,-248.71531821,0.00049315,30]
[395331362,1764632590155,-500.0,0.00049315,30]
[395331365,1764632590214,-257.91778498,0.00049315,30]
[395331367,1764632590269,-500.0,0.00049315,30]
[395331369,1764632590327,-267.46074303,0.00049315,30]
[395331371,1764632590387,-277.35679052,0.00049315,30]
[395331372,1764632590440,-287.61899177,0.00049315,30]
[395331374,1764632590493,-298.26089446,0.00049315,30]
[395331376,1764632590548,-309.29654756,0.00049315,30]
[395331379,1764632590611,-320.74051982,0.00049315,30]
[395331380,1764632590666,-332.60791905,0.00049315,30]
[395331382,1764632590723,-344.91441206,0.00049315,30]
[395331384,1764632590776,-357.6762453,0.00049315,30]
[395331387,1764632590834,-370.91026638,0.00049315,30]
[395331388,1764632590885,-384.63394623,0.00049315,30]
[395331390,1764632590942,-398.86540225,0.00049315,30]
[395331392,1764632590998,-151.0,0.00049315,30]
[395331395,1764632591053,-235.35583965,0.00049315,30]
[395331397,1764632591109,-151.0,0.00049315,30]
[395331398,1764632591168,-300.0,0.00049315,30]
[395331401,1764632591228,-311.1,0.00049315,30]
[395331402,1764632591288,-322.6107,0.00049315,30]
[395331404,1764632591350,-334.5472959,0.00049315,30]
[395331407,1764632591412,-346.92554585,0.00049315,30]
[395331409,1764632591474,-236.57608981,0.00049315,30]
[395331411,1764632591537,-1000.0,0.00049315,30]
[395331412,1764632591599,-1000.0,0.00049315,30]
[395331415,1764632591662,-1000.0,0.00049315,30]
[395331416,1764632591715,-1000.0,0.00049315,30]
[395331417,1764632591766,-1000.0,0.00049315,30]
[395331418,1764632591829,-1000.0,0.00049315,30]
[395331420,1764632591903,-1000.0,0.00049315,30]
[395331423,1764632591973,-1000.0,0.00049315,30]
[395331425,1764632592041,-1000.0,0.00049315,30]
[395331428,1764632592118,-1000.0,0.00049315,30]
[395331430,1764632592184,-1000.0,0.00049315,30]
[395331432,1764632592251,-1000.0,0.00049315,30]